bitfinex/quotes_BTCUSD_20241123
["timestamp","ask_amount","ask_price","bid_price","bid_amount"]
[1732391913365,0.2544659,97474.0,97473.0,0.31556927]
[1732391913837,0.2544659,97474.0,97473.0,0.31456927]
[1732391914658,0.2544659,97474.0,97473.0,0.3152915]
[1732391914870,0.2544659,97474.0,97473.0,0.31356927]
[1732391916985,0.2544659,97474.0,97473.0,0.31456927]
[1732391917403,0.2544659,97474.0,97473.0,0.31356927]
[1732391918027,0.2544659,97474.0,97473.0,0.31456927]
[1732391918286,0.2544659,97474.0,97473.0,0.3152915]
[1732391920883,0.2544659,97474.0,97473.0,0.31456927]
[1732391921292,0.2544659,97474.0,97473.0,0.31356927]
[1732391921463,0.2544659,97474.0,97473.0,0.31456927]
[1732391921925,0.2544659,97474.0,97473.0,0.01229699]
[1732391922491,0.25363976,97474.0,97473.0,0.01229699]
[1732391922914,0.25363976,97474.0,97473.0,0.07385199]
[1732391926772,0.25363976,97474.0,97473.0,0.07471069]
[1732391929291,0.25363976,97474.0,97473.0,0.07543292]
[1732391929825,0.25363976,97474.0,97473.0,0.07471069]
[1732391930003,0.25363976,97474.0,97473.0,0.07371069]
[1732391930981,0.25089086,97474.0,97473.0,0.07371069]
[1732391931423,0.25364449,97474.0,97473.0,0.07371069]
[1732391935379,0.25364449,97474.0,97473.0,0.07471069]
[1732391935805,0.25089086,97474.0,97473.0,0.07471069]
[1732391936159,0.25089086,97474.0,97473.0,0.07371069]
[1732391939454,0.25089086,97474.0,97473.0,0.10201427]
[1732391939654,0.25089086,97474.0,97473.0,0.16356927]
[1732391941089,0.25089086,97474.0,97473.0,0.18508827]
[1732391943188,0.25089086,97474.0,97473.0,0.18408827]
[1732391945470,0.29999086,97474.0,97473.0,0.18408827]
[1732391945627,0.29999086,97474.0,97473.0,0.33408827]
[1732391945827,0.30274827,97474.0,97473.0,0.33408827]
[1732391948086,0.0759,97473.0,97469.0,0.04215743]
[1732391948343,0.0491,97470.0,97467.0,0.0008585]
[1732391948513,0.19584221,97471.0,97467.0,0.04293093]
[1732391948514,0.125,97468.0,97467.0,0.04293093]
[1732391948708,0.125,97468.0,97467.0,0.0008585]
[1732391948892,0.12775416,97468.0,97467.0,0.0008585]
[1732391949118,0.37775416,97468.0,97467.0,0.0008585]
[1732391949313,0.37775416,97468.0,97467.0,0.23085559]
[1732391949737,0.37775416,97468.0,97467.0,0.0008585]
[1732391952666,0.375,97468.0,97467.0,0.0008585]
[1732391952998,0.375,97468.0,97467.0,0.23078513]
[1732391953353,0.375,97468.0,97467.0,0.0008585]
[1732391953813,0.375,97468.0,97467.0,0.18478375]
[1732391954011,0.375,97468.0,97467.0,0.0008585]
[1732391954687,0.375,97468.0,97467.0,0.18476045]
[1732391955805,0.67343921,97468.0,97467.0,0.13876976]
[1732391956064,0.57084221,97468.0,97467.0,0.0928012]
[1732391956270,0.57111998,97468.0,97467.0,0.0008585]
[1732391957747,0.67371698,97468.0,97467.0,0.0008585]
[1732391957964,0.57111998,97468.0,97467.0,0.0008585]
[1732391962137,0.67313425,97468.0,97467.0,0.0008585]
[1732391974598,0.98092425,97468.0,97467.0,0.0008585]
[1732391976435,0.047,97458.0,97449.0,0.0917607]
[1732391976630,0.047,97458.0,97457.0,0.102609]
[1732391976912,0.205181,97457.0,97453.0,0.252613]
[1732391977135,0.205181,97457.0,97456.0,0.25261]
[1732391978140,0.455181,97457.0,97456.0,0.25261]
[1732391983794,0.455181,97457.0,97456.0,0.29347868]
[1732391986841,0.455181,97457.0,97456.0,0.29433738]
[1732391988088,0.455181,97457.0,97456.0,0.38617594]
[1732391988293,0.455181,97457.0,97456.0,0.29433738]
[1732391989319,0.455181,97457.0,97456.0,0.43209522]
[1732391989547,0.455181,97457.0,97456.0,0.29433738]
[1732391989961,0.455181,97457.0,97456.0,0.04278164]
[1732391990181,0.455181,97457.0,97456.0,0.04172738]
[1732391990397,0.455181,97457.0,97456.0,0.13362273]
[1732391990981,0.455181,97457.0,97456.0,0.23623273]
[1732391991362,0.455181,97457.0,97456.0,0.14433738]
[1732391997432,0.455181,97457.0,97456.0,0.3282369]
[1732391998250,0.455181,97457.0,97456.0,0.14433738]
[1732392001899,0.455181,97457.0,97456.0,0.42074957]
[1732392002119,0.455181,97457.0,97456.0,0.14433738]
[1732392002534,0.455181,97457.0,97456.0,0.42074957]
[1732392002771,0.455181,97457.0,97456.0,0.14433738]
[1732392003420,0.455181,97457.0,97456.0,0.42074957]
[1732392003634,0.455181,97457.0,97456.0,0.14433738]
[1732392004298,0.72622321,97457.0,97456.0,0.04172738]
[1732392004504,0.72622321,97457.0,97456.0,0.0008587]
[1732392004505,0.87721525,97457.0,97456.0,0.0008587]
[1732392004703,1.07721525,97457.0,97456.0,0.0008587]
[1732392005117,0.32001998,97450.0,97449.0,0.27647129]
[1732392005262,0.24454221,97447.0,97446.0,0.14391947]
[1732392005488,0.24454221,97447.0,97446.0,0.37909129]
[1732392005691,0.44972321,97447.0,97446.0,0.10262]
[1732392007336,0.69972321,97447.0,97446.0,0.10262]
[1732392007765,0.65102321,97447.0,97446.0,0.10262]
[1732392007949,0.455181,97447.0,97446.0,0.10262]
[1732392008408,0.455181,97447.0,97446.0,0.25434223]
[1732392008627,0.455181,97447.0,97446.0,0.25262]
[1732392009121,0.455181,97447.0,97446.0,0.52909129]
[1732392009276,0.455181,97447.0,97446.0,0.25434223]
[1732392009487,0.455181,97447.0,97446.0,0.33524223]
[1732392009715,0.455181,97447.0,97446.0,0.4372565]
[1732392010477,0.455181,97447.0,97446.0,0.43553427]
[1732392010673,0.455181,97447.0,97446.0,0.4372565]
[1732392011099,0.455181,97447.0,97446.0,0.43553427]
[1732392011511,0.455181,97447.0,97446.0,0.2534788]
[1732392011727,0.455181,97447.0,97446.0,0.1034788]
[1732392011728,0.65102321,97447.0,97446.0,0.1034788]
[1732392011938,0.69912321,97447.0,97446.0,0.1034788]
[1732392012151,0.77522321,97447.0,97446.0,0.0008588]
[1732392012559,0.77522321,97447.0,97446.0,0.33373099]
[1732392012932,0.77522321,97447.0,97446.0,0.1034788]
[1732392014350,0.77550098,97447.0,97446.0,0.0008588]
[1732392014539,0.77522321,97447.0,97446.0,0.0008588]
[1732392014727,0.77550098,97447.0,97446.0,0.0008588]
[1732392014938,0.77550098,97447.0,97446.0,0.13897107]
[1732392015129,0.77550098,97447.0,97446.0,0.0008588]
[1732392015324,0.77550098,97447.0,97446.0,0.1034788]
[1732392015688,0.77550098,97447.0,97446.0,0.0008588]
[1732392016026,0.77550098,97447.0,97446.0,0.1034788]
[1732392016719,0.77550098,97447.0,97446.0,0.2534788]
[1732392016918,0.77522321,97447.0,97446.0,0.2534788]
[1732392018387,0.77522321,97447.0,97446.0,0.1508588]
[1732392018979,0.77522321,97447.0,97446.0,0.2534788]
[1732392019839,0.77522321,97447.0,97446.0,0.0008588]
[1732392020442,0.77522321,97447.0,97446.0,0.2534788]
[1732392021912,0.77522321,97447.0,97446.0,0.1034788]
[1732392022353,0.77522321,97447.0,97446.0,0.0008588]
[1732392022777,0.77522321,97447.0,97446.0,0.1034788]
[1732392026632,0.19584221,97444.0,97443.0,0.252623]
[1732392027162,0.44584221,97444.0,97443.0,0.252623]
[1732392027775,0.65102321,97444.0,97443.0,0.252623]
[1732392028215,0.19584221,97439.0,97438.0,0.2534881]
[1732392028426,0.32004221,97439.0,97438.0,0.2534881]
[1732392028642,0.52522321,97439.0,97438.0,0.2534881]
[1732392028877,0.52522321,97439.0,97438.0,0.0008591]
[1732392028878,0.82751525,97439.0,97438.0,0.0008591]
[1732392029363,1.07751525,97439.0,97438.0,0.0008591]
[1732392035560,1.20314325,97439.0,97438.0,0.0008591]
[1732392038370,1.10051525,97439.0,97438.0,0.0008591]
[1732392038595,1.20314325,97439.0,97438.0,0.0008591]
[1732392039091,1.10051525,97439.0,97438.0,0.0008591]
[1732392039289,1.10051525,97439.0,97424.0,0.102643]
[1732392039290,0.31941998,97425.0,97424.0,0.102643]
[1732392039519,0.42115648,97425.0,97424.0,0.102643]
[1732392039768,0.62115648,97425.0,97424.0,0.102643]
[1732392040732,0.62143425,97425.0,97424.0,0.102643]
[1732392040958,0.62136241,97425.0,97424.0,0.102643]
[1732392041173,0.87136241,97425.0,97424.0,0.102643]
[1732392043235,1.07654341,97425.0,97424.0,0.102643]
[1732392046798,1.07626564,97425.0,97424.0,0.102643]
[1732392047760,1.07654341,97425.0,97424.0,0.102643]
[1732392050376,1.07654341,97425.0,97424.0,0.1035021]
[1732392050825,1.07826161,97425.0,97424.0,0.1035021]
[1732392051074,1.07798384,97425.0,97424.0,0.1035021]
[1732392052801,1.07798384,97425.0,97424.0,0.14526045]
[1732392053486,1.07826161,97425.0,97424.0,0.14526045]
[1732392053932,1.00168384,97425.0,97424.0,0.14526045]
[1732392054170,0.95475568,97425.0,97424.0,0.14526045]
[1732392054397,0.65274141,97425.0,97424.0,0.14526045]
[1732392055825,0.65274141,97425.0,97420.0,0.102648]
[1732392056062,0.65274141,97425.0,97424.0,0.102643]
[1732392060195,0.70234141,97425.0,97424.0,0.102643]
[1732392062146,0.2,97421.0,97417.0,0.04210387]
[1732392062413,0.60851347,97425.0,97417.0,0.252651]
[1732392062414,0.47444221,97418.0,97417.0,0.252651]
[1732392062669,0.62605648,97418.0,97417.0,0.252651]
[1732392062917,0.83123748,97418.0,97417.0,0.252651]
[1732392063138,1.08151525,97418.0,97417.0,0.252651]
[1732392063414,1.08151525,97418.0,97417.0,0.15]
[1732392063628,1.08123748,97418.0,97417.0,0.252651]
[1732392064111,0.19611998,97414.0,97413.0,0.102654]
[1732392064364,0.19611998,97414.0,97413.0,0.252654]
[1732392064365,0.40102321,97414.0,97413.0,0.252654]
[1732392065318,0.65102321,97414.0,97413.0,0.252654]
[1732392066780,1.08451525,97414.0,97413.0,0.102654]
[1732392068867,1.08451525,97414.0,97412.0,0.04187749]
[1732392069088,0.34765997,97413.0,97412.0,0.04187749]
[1732392069310,0.54663425,97413.0,97412.0,0.04187749]
[1732392069571,0.62333425,97413.0,97412.0,0.04187749]
[1732392069809,0.82851525,97413.0,97412.0,0.04187749]
[1732392070285,0.82851525,97413.0,97412.0,0.14453349]
[1732392070286,1.07851525,97413.0,97412.0,0.14453349]
[1732392071564,1.07851525,97413.0,97412.0,0.04187749]
[1732392074149,1.07851525,97413.0,97412.0,0.14453349]
[1732392074380,1.07823748,97413.0,97412.0,0.14453349]
[1732392075368,0.19584221,97411.0,97410.0,0.103516]
[1732392075591,0.29785648,97411.0,97410.0,0.14603676]
[1732392075816,0.49785648,97411.0,97410.0,0.14603676]
[1732392076257,0.50303748,97411.0,97410.0,0.14603676]
[1732392076698,0.40102321,97411.0,97410.0,0.14603676]
[1732392077177,0.65102321,97411.0,97410.0,0.14603676]
[1732392077639,1.07583748,97411.0,97410.0,0.14603676]
[1732392078147,1.07611525,97411.0,97410.0,0.14603676]
[1732392078870,1.07583748,97411.0,97410.0,0.14603676]
[1732392080237,1.07611525,97411.0,97410.0,0.14603676]
[1732392080658,1.07583748,97411.0,97410.0,0.14603676]
[1732392081614,1.07611525,97411.0,97410.0,0.14603676]
[1732392081815,1.07583748,97411.0,97410.0,0.14603676]
[1732392082032,1.07611525,97411.0,97410.0,0.14603676]
[1732392082278,1.07583748,97411.0,97410.0,0.14603676]
[1732392083493,1.07611525,97411.0,97410.0,0.14603676]
[1732392085269,1.07583748,97411.0,97410.0,0.14603676]
[1732392086598,1.07755488,97411.0,97410.0,0.14603676]
[1732392087997,0.95475488,97411.0,97410.0,0.14603676]
[1732392088445,0.65274061,97411.0,97410.0,0.14603676]
[1732392089851,0.4568984,97411.0,97410.0,0.37453676]
[1732392090300,0.4568984,97411.0,97410.0,0.29603676]
[1732392090517,0.65274061,97411.0,97410.0,0.14603676]
[1732392090743,1.00435488,97411.0,97410.0,0.33013203]
[1732392090952,0.61592326,97411.0,97410.0,0.14603676]
[1732392091162,0.42008105,97411.0,97410.0,0.33563676]
[1732392091384,0.0017182,97425.0,97420.0,0.102648]
[1732392091591,0.0017182,97425.0,97420.0,0.332148]
[1732392092019,0.0017182,97425.0,97420.0,0.331148]
[1732392092460,0.0017182,97425.0,97420.0,0.33287023]
[1732392093744,0.0017182,97425.0,97420.0,0.37507655]
[1732392094223,0.0017182,97425.0,97420.0,0.37435432]
[1732392095366,0.0017182,97425.0,97420.0,0.37335432]
[1732392095581,0.0017182,97425.0,97420.0,0.29485432]
[1732392096055,0.19756041,97425.0,97420.0,0.29485432]
[1732392096264,0.00102572,97424.0,97420.0,0.29485432]
[1732392096894,0.00102572,97424.0,97420.0,0.43276217]
[1732392097614,0.00102572,97424.0,97420.0,0.29485432]
[1732392099808,0.00102572,97424.0,97420.0,0.4327445]
[1732392100025,0.00102572,97424.0,97420.0,0.29485432]
[1732392101361,0.00102572,97424.0,97420.0,0.4327445]
[1732392101568,0.00102572,97424.0,97420.0,0.52469363]
[1732392101795,0.00102572,97424.0,97420.0,0.29485432]
[1732392102231,0.00102572,97424.0,97420.0,0.47869491]
[1732392102442,0.00102572,97424.0,97420.0,0.29485432]
[1732392103314,0.00102572,97424.0,97420.0,0.43273847]
[1732392103569,0.00102572,97424.0,97420.0,0.29485432]
[1732392103994,0.2,97423.0,97420.0,0.29485432]
[1732392104212,0.00274292,97421.0,97420.0,0.29485432]
[1732392104424,0.39858513,97421.0,97420.0,0.14485432]
[1732392104631,0.62927368,97421.0,97420.0,0.102648]
[1732392104863,0.62927368,97421.0,97415.0,0.25080215]
[1732392104864,0.52554221,97416.0,97415.0,0.112918]
[1732392105072,0.62755648,97416.0,97415.0,0.112918]
[1732392105284,0.19584221,97413.0,97412.0,0.102655]
[1732392105505,0.49785648,97413.0,97412.0,0.102655]
[1732392105936,0.49785648,97413.0,97410.0,0.000858]
[1732392105937,0.39584221,97411.0,97410.0,0.000858]
[1732392106206,0.39584221,97411.0,97405.0,0.102664]
[1732392106207,0.19584221,97408.0,97405.0,0.102664]
[1732392106438,0.35161427,97411.0,97405.0,0.102664]
[1732392106439,0.19584221,97406.0,97405.0,0.102664]
[1732392106652,0.19584221,97402.0,97401.0,0.0008585]
[1732392106873,0.27594221,97402.0,97401.0,0.0008585]
[1732392107090,0.57795648,97402.0,97401.0,0.1035255]
[1732392107308,0.62755648,97402.0,97401.0,0.0008585]
[1732392107537,0.62755648,97402.0,97401.0,0.1035265]
[1732392107967,0.62755648,97402.0,97401.0,0.0008585]
[1732392108208,0.62755648,97402.0,97401.0,0.1035265]
[1732392111584,0.93555648,97402.0,97401.0,0.1035265]
[1732392112746,0.9328984,97402.0,97401.0,0.1035265]
[1732392115616,0.9327784,97402.0,97401.0,0.1035265]
[1732392121631,1.0827784,97402.0,97401.0,0.1035265]
[1732392121885,1.08261458,97402.0,97401.0,0.1035265]
[1732392122537,1.08261458,97402.0,97401.0,0.1031265]
[1732392126208,0.93261458,97402.0,97401.0,0.1031265]
[1732392129612,0.80291458,97402.0,97401.0,0.1031265]
[1732392130344,0.50090031,97402.0,97401.0,0.1031265]
[1732392131024,0.308,97402.0,97401.0,0.1031265]
[1732392131235,0.308,97402.0,97401.0,0.28683108]
[1732392131471,0.308,97402.0,97401.0,0.1031265]
[1732392131697,0.50090031,97402.0,97401.0,0.1041265]
[1732392131929,0.50090031,97402.0,97401.0,0.10484873]
[1732392132171,0.308,97402.0,97401.0,0.10484873]
[1732392132578,0.308,97402.0,97401.0,0.18784873]
[1732392132799,0.50090031,97402.0,97401.0,0.1871265]
[1732392133480,0.50090031,97402.0,97401.0,0.41570815]
[1732392133702,0.50090031,97402.0,97401.0,0.33370815]
[1732392133903,0.50090031,97402.0,97401.0,0.33271141]
[1732392134132,0.50028497,97402.0,97401.0,0.1031265]
[1732392134363,0.50028497,97402.0,97401.0,0.28679494]
[1732392134602,0.50028497,97402.0,97401.0,0.1031265]
[1732392135056,0.50028497,97402.0,97401.0,0.33271141]
[1732392135298,0.70028497,97402.0,97401.0,0.1031265]
[1732392135518,0.70200257,97402.0,97401.0,0.1031265]
[1732392135736,0.80401684,97402.0,97401.0,0.1031265]
[1732392138194,0.80401684,97402.0,97401.0,0.0004585]
[1732392138875,0.80401684,97402.0,97401.0,0.1031265]
[1732392139747,0.80401684,97402.0,97401.0,0.0004585]
[1732392140187,0.80429461,97402.0,97401.0,0.0004585]
[1732392140396,0.80401684,97402.0,97401.0,0.1031265]
[1732392140607,0.80401684,97402.0,97401.0,0.0004585]
[1732392141269,0.80401684,97402.0,97401.0,0.1031265]
[1732392141270,0.93131684,97402.0,97401.0,0.1031265]
[1732392141473,0.93131684,97402.0,97401.0,0.0004585]
[1732392141693,1.05698384,97402.0,97401.0,0.0004585]
[1732392141932,0.95431684,97402.0,97401.0,0.0004585]
[1732392142147,1.05598384,97402.0,97401.0,0.0004585]
[1732392142625,1.05626161,97402.0,97401.0,0.0004585]
[1732392143051,1.05598384,97402.0,97401.0,0.0004585]
[1732392143481,0.95331684,97402.0,97401.0,0.0004585]
[1732392144109,1.05598384,97402.0,97401.0,0.0004585]
[1732392144324,1.03298384,97402.0,97401.0,0.0004585]
[1732392145408,1.03326161,97402.0,97401.0,0.0004585]
[1732392145623,1.03298384,97402.0,97401.0,0.0004585]
[1732392147335,0.93031684,97402.0,97401.0,0.0004585]
[1732392148629,0.19290031,97396.0,97393.0,0.24073519]
[1732392148844,0.19290031,97394.0,97393.0,0.24073519]
[1732392149051,0.29491458,97394.0,97393.0,0.102676]
[1732392152285,0.29491458,97394.0,97388.0,0.28721183]
[1732392152552,0.44070031,97389.0,97388.0,0.0008584]
[1732392152737,0.54271458,97389.0,97388.0,0.0008584]
[1732392152942,0.62131458,97389.0,97388.0,0.0008584]
[1732392154619,0.62131458,97389.0,97388.0,0.0932714]
[1732392155048,0.62131458,97389.0,97388.0,0.0008584]
[1732392160318,0.62131458,97389.0,97379.0,0.184844]
[1732392160542,0.2,97380.0,97379.0,0.184844]
[1732392160753,0.49491458,97380.0,97379.0,0.184844]
[1732392163587,0.49491458,97380.0,97379.0,0.22562174]
[1732392166185,0.49491458,97380.0,97375.0,0.0932833]
[1732392166186,0.61901458,97380.0,97377.0,0.092423]
[1732392166411,0.61901458,97380.0,97375.0,0.0932833]
[1732392166412,0.39290031,97378.0,97375.0,0.0932833]
[1732392166647,0.2959403,97377.0,97376.0,0.092424]
[1732392166847,0.29491458,97377.0,97376.0,0.092424]
[1732392167305,0.31405845,97377.0,97376.0,0.092424]
[1732392167509,0.29491458,97377.0,97376.0,0.092424]
[1732392170862,0.19290031,97376.0,97375.0,0.13512307]
[1732392171061,0.2959403,97376.0,97375.0,0.13512307]
[1732392171283,0.49491458,97376.0,97375.0,0.04269807]
[1732392171495,0.49491458,97376.0,97375.0,0.0008583]
[1732392171933,0.51405507,97376.0,97375.0,0.0008583]
[1732392172164,0.74594907,97376.0,97375.0,0.0008583]
[1732392172376,0.64325507,97376.0,97375.0,0.0008583]
[1732392172798,0.64325507,97376.0,97375.0,0.0932843]
[1732392173264,0.64325507,97376.0,97375.0,0.0008583]
[1732392173915,0.64325507,97376.0,97375.0,0.04314787]
[1732392174136,0.64325507,97376.0,97375.0,0.0008583]
[1732392175410,0.64325507,97376.0,97375.0,0.0932843]
[1732392176074,0.64325507,97376.0,97375.0,0.0008583]
[1732392176705,0.64325507,97376.0,97375.0,0.13591831]
[1732392176961,0.56255507,97376.0,97375.0,0.13591831]
[1732392177171,0.56255507,97376.0,97375.0,0.092426]
[1732392182759,0.39226031,97372.0,97371.0,0.13333049]
[1732392182976,0.39226031,97372.0,97371.0,0.04090149]
[1732392182977,0.51341507,97372.0,97371.0,0.04090149]
[1732392183189,0.82151507,97372.0,97371.0,0.04090149]
[1732392183423,0.19290031,97370.0,97369.0,0.0932897]
[1732392183639,0.35915507,97370.0,97369.0,0.0932897]
[1732392183865,0.64811458,97370.0,97369.0,0.0008587]
[1732392184071,0.66727175,97370.0,97369.0,0.0008587]
[1732392184293,0.66727175,97370.0,97369.0,0.0932897]
[1732392184542,0.66727175,97370.0,97369.0,0.0008587]
[1732392184751,0.66727175,97370.0,97369.0,0.04166311]
[1732392185247,0.86663109,97370.0,97369.0,0.0008587]
[1732392185705,0.94813109,97370.0,97369.0,0.0008587]
[1732392187758,1.05083209,97370.0,97369.0,0.0008587]
[1732392188005,1.08147577,97370.0,97369.0,0.0008587]
[1732392188232,1.08175354,97370.0,97369.0,0.0008587]
[1732392188520,1.28175354,97370.0,97369.0,0.0008587]
[1732392191647,1.28147577,97370.0,97369.0,0.0008587]
[1732392192118,1.28175354,97370.0,97369.0,0.0008587]
[1732392192341,1.26256274,97370.0,97369.0,0.0008587]
[1732392192558,1.25108422,97370.0,97369.0,0.0008587]
[1732392193259,1.05080645,97370.0,97369.0,0.0008587]
[1732392193479,0.94838322,97370.0,97369.0,0.0008587]
[1732392194134,0.94810545,97370.0,97369.0,0.0008587]
[1732392195019,1.05080645,97370.0,97369.0,0.0008587]
[1732392195689,0.94810545,97370.0,97369.0,0.0008587]
[1732392195900,1.03167558,97370.0,97369.0,0.0008587]
[1732392196190,1.0510913,97370.0,97369.0,0.0008587]
[1732392197983,1.2510913,97370.0,97369.0,0.0008587]
[1732392198831,1.23195335,97370.0,97369.0,0.0008587]
[1732392201621,1.43195335,97370.0,97369.0,0.0008587]
[1732392201827,1.45495335,97370.0,97369.0,0.0008587]
[1732392202912,1.47408252,97370.0,97369.0,0.0008587]
[1732392203349,1.51474832,97370.0,97369.0,0.0008587]
[1732392204851,1.48474832,97370.0,97369.0,0.0008587]
[1732392205073,1.46561916,97370.0,97369.0,0.0008587]
[1732392207930,1.48474781,97370.0,97369.0,0.0008587]
[1732392208162,1.444082,97370.0,97369.0,0.0008587]
[1732392209093,1.42495335,97370.0,97369.0,0.0008587]
[1732392213002,1.44408858,97370.0,97369.0,0.0008587]
[1732392216187,1.42495335,97370.0,97369.0,0.0008587]
[1732392216399,1.20167558,97370.0,97369.0,0.0008587]
[1732392216607,0.81747458,97370.0,97369.0,0.0008587]
[1732392216816,1.01747458,97370.0,97369.0,0.0008587]
[1732392217882,1.12017558,97370.0,97369.0,0.0008587]
[1732392219186,0.92017558,97370.0,97369.0,0.0008587]
[1732392219621,0.92045335,97370.0,97369.0,0.0008587]
[1732392220671,1.00277035,97370.0,97369.0,0.0008587]
[1732392221107,1.02191304,97370.0,97369.0,0.0008587]
[1732392221316,1.22191304,97370.0,97369.0,0.0008587]
[1732392222212,1.24463527,97370.0,97369.0,0.0008587]
[1732392222434,1.28569738,97370.0,97369.0,0.0008587]
[1732392223081,1.26655458,97370.0,97369.0,0.0008587]
[1732392225308,1.28569937,97370.0,97369.0,0.0008587]
[1732392228196,1.28597714,97370.0,97369.0,0.0008587]
[1732392232799,1.26683235,97370.0,97369.0,0.0008587]
[1732392233032,1.28598971,97370.0,97369.0,0.0008587]
[1732392233254,1.48598971,97370.0,97369.0,0.0008587]
[1732392234604,0.36226031,97342.0,97341.0,0.32874517]
[1732392234825,0.46427458,97342.0,97341.0,0.102731]
[1732392235442,0.46427458,97342.0,97341.0,0.14400924]
[1732392235898,0.77237458,97342.0,97341.0,0.04127824]
[1732392236112,0.77237458,97342.0,97341.0,0.14400924]
[1732392236323,0.77237458,97342.0,97341.0,0.102731]
[1732392241392,0.77237458,97342.0,97341.0,0.142331]
[1732392241821,0.57301458,97342.0,97341.0,0.142331]
[1732392242091,0.77237458,97342.0,97341.0,0.142331]
[1732392242532,0.77237458,97342.0,97341.0,0.222931]
[1732392243173,0.77237458,97342.0,97341.0,0.40739107]
[1732392243600,0.77237458,97342.0,97341.0,0.40739726]
[1732392244036,0.77237458,97342.0,97341.0,0.222931]
[1732392244255,0.77237458,97342.0,97341.0,0.40739916]
[1732392244672,0.77237458,97342.0,97341.0,0.222931]
[1732392244884,0.77237458,97342.0,97341.0,0.2237897]
[1732392245314,0.77409198,97342.0,97341.0,0.2237897]
[1732392245534,0.47271771,97342.0,97341.0,0.2237897]
[1732392246005,0.47271771,97342.0,97341.0,0.50039022]
[1732392246905,0.47271771,97342.0,97341.0,0.2237897]
[1732392251592,0.3098174,97342.0,97341.0,0.2237897]
[1732392251814,0.3098174,97342.0,97341.0,0.22551193]
[1732392252039,0.47271771,97342.0,97341.0,0.2237897]
[1732392252703,0.47271771,97342.0,97341.0,0.50039022]
[1732392252911,0.47271771,97342.0,97341.0,0.2237897]
[1732392253353,0.47271771,97342.0,97339.0,0.102733]
[1732392253598,0.47271771,97342.0,97341.0,0.102731]
[1732392257471,0.47271771,97342.0,97341.0,0.1035897]
[1732392260143,0.47271771,97342.0,97341.0,0.33413205]
[1732392260626,0.47271771,97342.0,97341.0,0.1035897]
[1732392262327,0.3098174,97342.0,97341.0,0.1035897]
[1732392262558,0.47271771,97342.0,97341.0,0.1035897]
[1732392263802,0.3098174,97342.0,97341.0,0.1035897]
[1732392264033,0.47271771,97342.0,97341.0,0.1035897]
[1732392264275,0.75467771,97342.0,97341.0,0.1035897]
[1732392264772,0.5917774,97342.0,97341.0,0.1035897]
[1732392265050,0.75467771,97342.0,97341.0,0.1035897]
[1732392265280,0.75467771,97342.0,97341.0,0.2535897]
[1732392266989,0.5917774,97342.0,97341.0,0.2535897]
[1732392267184,0.75467771,97342.0,97341.0,0.2535897]
[1732392267630,0.67207771,97342.0,97341.0,0.2535897]
[1732392267847,0.47271771,97342.0,97341.0,0.2535897]
[1732392268075,0.3098174,97342.0,97341.0,0.56982076]
[1732392268297,0.3098174,97342.0,97341.0,0.29491193]
[1732392269695,0.3098174,97342.0,97341.0,0.32677507]
[1732392269924,0.3098174,97342.0,97341.0,0.73523812]
[1732392270365,0.3098174,97342.0,97341.0,0.29491193]
[1732392277819,0.3098174,97342.0,97341.0,0.32676722]
[1732392278477,0.3098174,97342.0,97341.0,0.73487443]
[1732392278903,0.3098174,97342.0,97341.0,0.73486981]
[1732392279320,0.3098174,97342.0,97341.0,0.73486808]
[1732392279677,0.3098174,97342.0,97341.0,0.73486625]
[1732392280092,0.3098174,97342.0,97341.0,0.73486616]
[1732392280325,0.3098174,97342.0,97341.0,0.29491193]
[1732392280763,0.3098174,97342.0,97341.0,0.73481758]
[1732392280984,0.3098174,97342.0,97341.0,0.29491193]
[1732392281408,0.3098174,97342.0,97341.0,0.25531193]
[1732392282710,0.3098174,97342.0,97341.0,0.2535897]
[1732392282918,0.3098174,97342.0,97341.0,0.66334661]
[1732392283337,0.29463668,97342.0,97341.0,0.25531193]
[1732392286427,0.29463668,97342.0,97341.0,0.2535897]
[1732392286651,0.28596701,97342.0,97341.0,0.2535897]
[1732392287076,0.25512854,97342.0,97341.0,0.2535897]
[1732392287721,0.23458254,97342.0,97341.0,0.2535897]
[1732392291445,0.09801104,97342.0,97341.0,0.25531193]
[1732392291715,0.08901104,97342.0,97341.0,0.25531193]
[1732392292951,0.04791904,97342.0,97341.0,0.25531193]
[1732392293631,0.02737304,97342.0,97341.0,0.25531193]
[1732392293847,0.00682704,97342.0,97341.0,0.25531193]
[1732392294050,4e-08,97342.0,97341.0,0.25531193]
[1732392295342,0.19936,97362.0,97361.0,0.10443223]
[1732392295622,0.24550031,97363.0,97362.0,0.102709]
[1732392295858,0.0826,97363.0,97362.0,0.10443123]
[1732392296057,0.0826,97363.0,97362.0,0.48290632]
[1732392296264,0.0826,97363.0,97362.0,0.03662771]
[1732392296477,0.0826,97363.0,97361.0,0.10443223]
[1732392296685,0.0826,97363.0,97362.0,0.102709]
[1732392299678,0.0826,97363.0,97362.0,0.252709]
[1732392300539,0.0826,97363.0,97362.0,0.43684782]
[1732392300778,0.0826,97363.0,97362.0,0.252709]
[1732392301445,0.1301,97363.0,97362.0,0.252709]
[1732392302315,0.1301,97363.0,97362.0,0.43684366]
[1732392302316,0.43319167,97363.0,97362.0,0.43684366]
[1732392302545,0.43319167,97363.0,97362.0,0.252709]
[1732392302770,0.43319167,97363.0,97362.0,0.43685044]
[1732392303487,0.43319167,97363.0,97362.0,0.252709]
[1732392304320,0.43319167,97363.0,97362.0,0.29508338]
[1732392306742,0.59609198,97363.0,97362.0,0.29508338]
[1732392306989,0.59609198,97363.0,97362.0,0.52531311]
[1732392307189,0.59609198,97363.0,97362.0,0.29508338]
[1732392308088,0.59609198,97363.0,97362.0,0.3292776]
[1732392308335,0.90422198,97363.0,97362.0,0.14508338]
[1732392309235,0.90422198,97363.0,97362.0,0.2832405]
[1732392309463,0.90422198,97363.0,97362.0,0.14508338]
[1732392310153,0.49036031,97361.0,97360.0,0.102711]
[1732392310379,0.19963777,97360.0,97359.0,0.24088931]
[1732392310603,0.90180807,97360.0,97359.0,0.102712]
[1732392310890,0.90078235,97360.0,97359.0,0.102712]
[1732392311334,0.90078235,97360.0,97357.0,0.102714]
[1732392311335,0.49063808,97358.0,97357.0,0.102714]
[1732392311582,0.90078235,97358.0,97357.0,0.102714]
[1732392312242,0.90078235,97358.0,97350.0,0.28691522]
[1732392312243,0.36253808,97352.0,97351.0,0.13817731]
[1732392312447,0.29127808,97351.0,97350.0,0.28691622]
[1732392312660,0.70142235,97351.0,97350.0,0.102722]
[1732392312864,0.70142235,97351.0,97350.0,0.24093395]
[1732392313351,0.70114458,97351.0,97350.0,0.24093395]
[1732392314325,0.70114458,97351.0,97350.0,0.102722]
[1732392314565,0.90050458,97351.0,97350.0,0.102722]
[1732392314786,0.90050458,97351.0,97350.0,0.2409099]
[1732392315024,0.90050458,97351.0,97350.0,0.102722]
[1732392315755,0.90050458,97351.0,97350.0,0.28695432]